[Event "67th Mexican-ch Open 2022"]
[Site "Chihuahua"]
[Date "2022.04.14"]
[Round "2.1"]
[White "Cori, Jorge"]
[Black "Diaz Villagran, Robert"]
[Result "1/2-1/2"]
[ECO "A26"]
[WhiteElo "2650"]
[BlackElo "2318"]
[Annotator "TA"]
[PlyCount "137"]
[EventDate "2022.04.12"]
[EventType "swiss"]
[EventCountry "MEX"]
[SourceTitle "playchess.com"]
[Source "ChessBase"]
[SourceQuality "1"]
[TimeControl "5400+30"]

{[%evp 25,137,19,30,7,41,35,31,29,43,7,0,5,40,40,40,40,40,40,40,36,40,36,40,36,59,11,11,11,11,11,11,0,0,0,18,0,0,0,0,-14,-14,0,0,0,0,0,0,0,0,0,-7,-7,-7,-7,0,0,0,0,0,-25,0,0,0,0,0,0,0,0,0,0,0,0,0,0,0,0,0,0,147,35,138,118,118,118,118,117,117,117,117,117,117,66,66,0,0,0,0,0,0,0,0,0,0,0,0,0,0,0,0,0,0,0,0,0]} 1. c4 {[%emt 0:00:04]} Nf6 {[%emt 0:00:16]} 2. Nc3 {[%emt 0:00:13]} g6 {[%emt 0:00:55]} 3. g3 {[%emt 0:00:36]} Bg7 {[%emt 0:00:17]} 4. Bg2 {[%emt 0:00:05]} O-O {[%emt 0:00:29]} 5. Nf3 {[%emt 0:00:15]} d6 {[%emt 0:01:03]} 6. O-O {[%emt 0:00:15]} e5 {[%emt 0:00:36]} 7. d3 {[%emt 0:00:05]} Nc6 {[%emt 0:04:33]} 8. Rb1 {[%emt 0:00:16]} a5 {[%emt 0:00:09]} 9. a3 {[%emt 0:00:04]} h6 {[%emt 0:00:29]} 10. b4 {[%emt 0:01:02]} axb4 {[%emt 0:00:05]} 11. axb4 {[%emt 0:00:03]} Be6 {[%emt 0:00:19]} 12. b5 {[%emt 0:01:52]} Ne7 {[%emt 0:00:05]} 13. Bb2 {[%emt 0:00:06]} Qd7 {[%emt 0:08:31]} 14. Re1 {[%emt 0:01:15] A26: English Opening vs King's Indian with ...Nc6 and d3.} Rab8 {[%emt 0:12:22] [#]} 15. e4 $146 {[%emt 0:19:19][%cal Oc4c5]} ({Predecessor:} 15. Ra1 Nh7 16. Ra7 f5 17. e3 g5 18. Nd2 g4 19. f4 gxf3 20. Nxf3 Rf7 21. Ne2 Ng6 {½-½ (45) Trauth,M (2112)-Luciani,C (2261) Arco 2017}) 15... Nh7 {[%emt 0:07:26]} 16. Nd5 {[%emt 0:20:49] White is slightly better.} c6 {[%emt 0:12:16]} 17. Nxe7+ {[%emt 0:00:06]} Qxe7 {[%emt 0:00:02]} 18. Bc3 {[%emt 0:00:14]} c5 {[%emt 0:03:15]} 19. Ra1 {[%emt 0:00:34]} Bg4 {[%emt 0:08:43]} 20. h3 {[%emt 0:01:24]} Bxf3 {[%emt 0:00:15]} 21. Qxf3 {[%emt 0:00:12]} Ng5 {[%emt 0:00:08]} 22. Qe2 {[%emt 0:00:13]} Ne6 {[%emt 0:00:07]} 23. h4 {[%emt 0:00:55]} h5 {[%emt 0:03:13]} 24. Bh3 {[%emt 0:00:18]} Bh6 {[%emt 0:00:23]} 25. b6 {[%emt 0:03:53]} (25. Bxe6 $14 {deserves consideration.} Qxe6 26. Ra2) 25... Kh7 $11 {[%emt 0:04:08]} 26. Ra2 {[%emt 0:01:48]} Nd8 {[%emt 0:02:59]} 27. Kg2 {[%emt 0:06:56]} Nc6 {[%emt 0:07:19]} 28. Rh1 {[%emt 0:01:22]} Ra8 {[%emt 0:00:40]} 29. Rha1 {[%emt 0:02:01]} Rab8 {[%emt 0:01:43]} 30. Rb1 {[%emt 0:02:49]} Ra8 {[%emt 0:00:38]} 31. Raa1 {[%emt 0:00:09]} Rfb8 {[%emt 0:03:16]} 32. Rh1 {[%emt 0:03:35]} Ra6 {[%emt 0:03:07]} 33. Qb2 {[%emt 0:04:31]} Rba8 {[%emt 0:02:23]} 34. Rxa6 {[%emt 0:00:11]} Rxa6 {[%emt 0:00:06]} 35. Ra1 {[%emt 0:00:37]} Rxa1 {[%emt 0:00:08]} 36. Qxa1 {[%emt 0:00:20]} Qd8 {[%emt 0:00:02] Inhibits Qa8.} 37. Qb2 {[%emt 0:00:20]} Kg8 {[%emt 0:00:54]} 38. Kh2 {[%emt 0:02:16]} Kf8 {[%emt 0:01:04]} 39. Kg2 {[%emt 0:03:10]} Kg8 {[%emt 0:00:08]} 40. Kh2 {[%emt 0:01:21]} Kh7 {[%emt 0:01:41]} 41. Bg2 {[%emt 0:00:30]} Kg8 {[%emt 0:05:58]} 42. Bf3 {[%emt 0:00:21]} g5 {[%emt 0:00:52]} 43. hxg5 {[%emt 0:09:01]} Qxg5 {[%emt 0:00:08]} 44. Kh3 {[%emt 0:04:07]} h4 {[%emt 0:01:37]} 45. Qe2 {[%emt 0:09:07]} hxg3 {[%emt 0:01:42]} 46. fxg3 {[%emt 0:00:02]} Qd8 {[%emt 0:02:18]} 47. Bh5 {[%emt 0:00:26]} Qg5 {[%emt 0:03:29]} 48. Qf3 {[%emt 0:00:31]} Nd8 {[%emt 0:00:01]} 49. Be1 {[%emt 0:01:01]} Kf8 {[%emt 0:00:25]} 50. Bg4 {[%emt 0:02:17]} Ke7 {[%emt 0:00:30]} 51. Bc8 {[%emt 0:00:08]} Bg7 {[%emt 0:01:31] [#]} (51... Qc1 $11 52. Qf5 Ne6) 52. Bf2 {[%emt 0:00:51]} (52. Qf5 $1 $16 {[%cal Rf5g5]} Qxf5+ 53. exf5 (53. Bxf5 Ne6 $14)) 52... Bf6 {[%emt 0:00:32]} (52... Qc1 $14) 53. Be3 {[%emt 0:00:30]} Qg6 {[%emt 0:00:02]} 54. Qf5 {[%emt 0:01:34] Strongly threatening Qd7+.} Kf8 {[%emt 0:01:02]} 55. Kg2 {[%emt 0:00:47] Hoping for Qh3. Active counter play!} Kg7 {[%emt 0:00:34]} 56. Qh3 {[%emt 0:00:33] Bf5 is the strong threat.} Bg5 {[%emt 0:00:23] [#]} 57. Bf5 $1 {[%emt 0:00:08]} Qh6 {[%emt 0:00:47]} 58. Qg4 {[%emt 0:00:04]} (58. Bxg5 $16 Qxg5 59. Qh7+ Kf8 60. Qh8+ Ke7 61. Qh4) 58... Kf6 $14 {[%emt 0:00:15]} 59. Bf2 {[%emt 0:00:29]} (59. Bxg5+ $1 $14 Qxg5 60. Qh4) 59... Ne6 $11 {[%emt 0:00:25] The position is equal.} 60. Bxe6 {[%emt 0:01:22] The board is on fire.} fxe6 {[%emt 0:00:03]} 61. Qd1 {[%emt 0:00:06]} Qh8 {[%emt 0:01:05]} 62. Qa1 {[%emt 0:01:07]} Kf7 {[%emt 0:00:24]} 63. Be1 {[%emt 0:00:27]} Qh5 {[%emt 0:00:11] And now ...Qe2+ would win.} 64. Bf2 {[%emt 0:00:48]} Qe2 {[%emt 0:00:30]} 65. Qf1 {[%emt 0:00:35]} Qxf1+ {[%emt 0:00:20]} 66. Kxf1 {[%emt 0:00:04]} Bd8 {[%emt 0:00:04]} 67. Ke2 {[%emt 0:00:08]} Bxb6 {[%emt 0:00:07]} 68. Kf3 {[%emt 0:00:27]} Bd8 {[%emt 0:01:22]} 69. Kg4 {[%emt 0:00:09] Weighted Error Value: White=0.12 (very precise) /Black=0.12 (very precise)} 1/2-1/2

[Event "67th Mexican-ch Open 2022"]
[Site "Chihuahua"]
[Date "2022.04.14"]
[Round "2.1"]
[White "Cruz Gomez, Miguel Angel"]
[Black "Cori, Jorge"]
[Result "*"]
[WhiteElo "2028"]
[BlackElo "2650"]
[Annotator "TA"]
[PlyCount "48"]
[EventDate "2022.04.12"]
[EventType "swiss"]
[EventCountry "MEX"]
[SourceTitle "playchess.com"]
[Source "ChessBase"]
[SourceQuality "1"]
[TimeControl "5400+30"]

{[%evp 12,13,40,0]} 1. c4 {[%emt 0:00:04]} Nf6 {[%emt 0:00:16]} 2. Nc3 {[%emt 0:00:13]} g6 {[%emt 0:00:55]} 3. g3 {[%emt 0:00:36]} Bg7 {[%emt 0:00:17]} 4. Bg2 {[%emt 0:00:05]} O-O {[%emt 0:00:29]} 5. Nf3 {[%emt 0:00:15]} d6 {[%emt 0:01:03]} 6. O-O {[%emt 0:00:15]} e5 {[%emt 0:00:36]} 7. d3 {[%emt 0:00:05] [#]} {Predecessor:} Nc6 $146 {A26: English Opening vs King's Indian with ...Nc6 and d3.} 8. Rb1 a5 9. a3 Re8 10. Bg5 h6 11. Bxf6 Bxf6 12. b4 axb4 13. axb4 Bg7 14. b5 Ne7 15. Nd2 c6 16. Qb3 Be6 17. Ra1 Rxa1 18. Rxa1 d5 19. bxc6 bxc6 20. cxd5 cxd5 21. Nb5 e4 22. d4 Qb6 23. e3 Rb8 24. Rb1 Nc6 {½-½ (43) Caruana,F (2765)-Onischuk,V (2603) Riga 2021} *

[Event "67th Mexican-ch Open 2022"]
[Site "Chihuahua"]
[Date "2022.04.14"]
[Round "2.2"]
[White "Maass Garza R, Alejandro"]
[Black "Mareco, Sandro"]
[Result "0-1"]
[ECO "B40"]
[WhiteElo "2265"]
[BlackElo "2643"]
[Annotator "TA"]
[PlyCount "70"]
[EventDate "2022.04.12"]
[EventType "swiss"]
[EventCountry "MEX"]
[SourceTitle "playchess.com"]
[Source "ChessBase"]
[SourceQuality "1"]
[TimeControl "5400+30"]

{[%evp 11,70,4,14,9,11,14,28,7,11,13,44,-13,0,-8,-8,-32,-33,-43,-35,-56,-47,-51,-44,-75,-77,-82,-87,-162,-172,-145,-158,-254,-244,-404,-289,-273,-297,-281,-276,-316,-287,-274,-278,-308,-306,-381,-345,-397,-403,-791,-791,-735,-704,-717,-719,-1022,-979,-29985,-29986,-29970,-29971]} 1. e4 {[%emt 0:00:13]} c5 {[%emt 0:00:14]} 2. Nf3 {[%emt 0:00:26]} Nc6 {[%emt 0:00:05]} 3. d4 {[%emt 0:00:24]} cxd4 {[%emt 0:00:04]} 4. Nxd4 {[%emt 0:00:06]} e6 {[%emt 0:00:05]} 5. c3 {[%emt 0:01:40]} d6 {[%emt 0:00:54]} 6. Bd3 {[%emt 0:01:06]} Nf6 {[%emt 0:00:15]} 7. O-O {[%emt 0:00:59] B40: Sicilian: 2...e6, Unusual lines.} Be7 {[%emt 0:00:33]} 8. Be3 {[%emt 0:02:35]} Ne5 $5 {[%emt 0:05:29][%mdl 4] [#] Leaves trodden paths.} 9. h3 $146 {[%emt 0:09:18] White has an edge.} ({Predecessor:} 9. Bc2 O-O 10. Nd2 a6 11. Qe2 Qc7 12. f4 Neg4 13. Kh1 Nxe3 14. Qxe3 Ne8 15. Rae1 {0-1 (77) Pereira,J (2099)-Deus Filho,J (1966) Ponta Grossa 2017}) 9... Nxd3 {[%emt 0:12:23]} 10. Qxd3 {[%emt 0:00:11]} O-O {[%emt 0:00:23]} 11. Nd2 {[%emt 0:02:10]} (11. c4 $14) 11... a6 {[%emt 0:01:11]} 12. Rad1 {[%emt 0:03:11]} Qc7 {[%emt 0:00:12]} 13. f4 {[%emt 0:11:16]} b5 {[%emt 0:00:33]} 14. Bf2 {[%emt 0:11:44]} Bb7 {[%emt 0:00:22]} 15. Rde1 {[%emt 0:02:49]} Nd7 {[%emt 0:02:49][%cal Bf6d7,Bd7c5,Bc5a4,Ba4b2][%mdl 32]} 16. Qg3 {[%emt 0:03:02]} Nc5 {[%emt 0:02:05]} 17. N4b3 {[%emt 0:08:33]} Na4 {[%emt 0:07:44] Black continues to play with concentration.} 18. Bd4 {[%emt 0:06:56][%csl Gd4][%cal Rg3g7] [#]} f6 {[%emt 0:00:45][%cal Bf7f6,Bf6f5][%mdl 32] White must now prevent ...e5.} 19. e5 {[%emt 0:00:55]} (19. Rb1 $17) 19... dxe5 $19 {[%emt 0:00:24]} ({And not} 19... Nxb2 20. exf6 Bxf6 21. Rxe6 Bxd4+ 22. Nxd4 $11) 20. fxe5 {[%emt 0:00:20][%cal Ob3a5]} Nxb2 {[%emt 0:03:51]} 21. Qe3 {[%emt 0:09:53]} (21. Rb1 $17 Na4 22. c4) 21... f5 {[%emt 0:00:07]} ({Stronger than} 21... Qc6 22. Rf2 $17) 22. Bc5 $2 {[%emt 0:01:45]} (22. Rc1) 22... Bd5 {[%emt 0:00:24]} 23. Bxe7 {[%emt 0:01:23]} Qxe7 {[%emt 0:00:05]} 24. Rf2 {[%emt 0:02:29]} Rac8 {[%emt 0:00:18][%cal Of5f4]} 25. Nf3 {[%emt 0:01:35]} Na4 {[%emt 0:00:54]} 26. Rc1 {[%emt 0:02:45]} Rc7 {[%emt 0:03:18]} 27. Nfd4 {[%emt 0:00:46]} Rfc8 {[%emt 0:03:57][%cal Ra4c3]} 28. Qd2 {[%emt 0:01:52][%cal Od4f5]} Bxb3 {[%emt 0:04:02]} 29. axb3 {[%emt 0:03:23]} Nxc3 {[%emt 0:00:06] [#] ...Ne4 is the strong threat.} 30. Kh2 {[%emt 0:00:21]} (30. Qd3 $142 Qd8 31. Rfc2 Ne2+ 32. Qxe2 Qxd4+ 33. Kf1 Qf4+ 34. Kg1 Qd4+ 35. Kf1 Qf4+ 36. Kg1 Qd4+) 30... Ne4 {[%emt 0:00:13][%csl LRc1,LRd2,LRf2]} 31. Nxf5 {[%emt 0:00:11]} exf5 {[%emt 0:00:16]} (31... Nxd2 $2 32. Nxe7+ Kh8 33. Nxc8 $18) 32. Qd5+ {[%emt 0:00:05]} Qf7 {[%emt 0:23:23]} 33. e6 {[%emt 0:06:56]} Qe7 {[%emt 0:00:05]} 34. Rfc2 {[%emt 0:00:13]} Rxc2 {[%emt 0:01:45]} 35. Rxc2 {[%emt 0:00:07]} Rxc2 {[%emt 0:28:46] Weighted Error Value: White=0.82/Black=0.08 (flawless)} 0-1

[Event "67th Mexican-ch Open 2022"]
[Site "Chihuahua"]
[Date "2022.04.14"]
[Round "2.3"]
[White "Hernandez Guerrero, Gilberto"]
[Black "Tapie Amione, Pablo Adib"]
[Result "1-0"]
[ECO "B11"]
[WhiteElo "2564"]
[BlackElo "2241"]
[Annotator "TA"]
[PlyCount "91"]
[EventDate "2022.04.12"]
[EventType "swiss"]
[EventCountry "MEX"]
[SourceTitle "playchess.com"]
[Source "ChessBase"]
[SourceQuality "1"]
[TimeControl "5400+30"]

{[%evp 10,91,63,51,49,38,25,31,39,43,61,39,30,15,0,-14,0,0,0,0,28,20,29,-35,-50,-35,-56,-41,-38,-52,0,0,0,-14,0,-1,325,316,303,295,235,233,225,233,387,325,883,876,811,323,637,486,595,302,590,281,631,483,473,472,452,427,401,382,361,362,339,346,391,377,365,309,394,371,456,462,461,456,518,451,888,803,29979,29980]} 1. e4 {[%emt 0:00:24]} c6 {[%emt 0:00:10]} 2. Nf3 {[%emt 0:01:48]} d5 {[%emt 0:00:16]} 3. Nc3 {[%emt 0:00:10]} dxe4 {[%emt 0:00:42]} 4. Nxe4 {[%emt 0:00:09]} Nf6 {[%emt 0:01:14]} 5. Nxf6+ {[%emt 0:04:28]} gxf6 {[%emt 0:00:07]} 6. g3 {[%emt 0:01:06]} Qd5 {[%emt 0:00:12] B11: Caro-Kann: Two Knights Variation.} 7. d3 {[%emt 0:02:16]} Bg4 {[%emt 0:03:23]} 8. Bg2 {[%emt 0:00:07]} Nd7 {[%emt 0:00:20] White is slightly better.} 9. h3 {[%emt 0:00:22]} Bh5 {[%emt 0:02:29]} 10. Qe2 {[%emt 0:00:26] [#]} e6 $146 {[%emt 0:09:31]} ({Predecessor:} 10... Ne5 11. g4 Bg6 12. Nh4 Qa5+ 13. Bd2 Qa4 14. f4 Qxc2 15. fxe5 Bxd3 16. Qe3 Qxb2 {1-0 (23) Bryant,J (2377)-Huang,D Woodland Hills 2012}) 11. Bd2 {[%emt 0:02:03] Prevents Bb4.} O-O-O {[%emt 0:04:43]} 12. a4 {[%emt 0:16:14]} f5 {[%emt 0:15:57]} 13. O-O {[%emt 0:04:09]} Rg8 {[%emt 0:01:24]} 14. Rfe1 {[%emt 0:08:45]} Bc5 {[%emt 0:14:21] Strongly threatening ...Rxg3.} 15. Kh2 {[%emt 0:04:52]} e5 {[%emt 0:00:26][%cal Oe5e4]} 16. c4 {[%emt 0:06:25]} (16. b4 $1 $11 e4 17. dxe4 fxe4 18. c4) 16... Qd6 $15 {[%emt 0:01:55][%cal Oe5e4] And now ...e4! would win.} 17. b4 {[%emt 0:04:22]} Bxb4 {[%emt 0:08:54]} 18. Bxb4 {[%emt 0:01:00]} Qxb4 {[%emt 0:00:29]} 19. Rab1 $1 {[%emt 0:00:55]} Qa3 {[%emt 0:02:54]} (19... Qd6 $15 20. Qb2 Qc7) 20. Qe3 $11 {[%emt 0:00:52]} Qc5 {[%emt 0:12:33] White must now prevent ...Qxe3.} ({But not} 20... Bxf3 21. Qxa7 Kc7 22. Rxb7+ (22. Bxf3 Rb8 $16) 22... Kd6 23. Bxf3 $16) 21. d4 {[%emt 0:04:18]} exd4 {[%emt 0:05:07]} 22. Nxd4 $40 {[%emt 0:01:48][%mdl 128] White is up to no good.} Nb6 $2 {[%emt 0:03:03][%mdl 8192] [#] This costs Black the game.} (22... Rge8 $11 23. Qf4 (23. Qxe8 Rxe8 24. Rxe8+ Kc7 $17) 23... Rxe1 24. Rxe1 Nf8) 23. Nxc6 $1 $18 {[%emt 0:00:29][%mdl 512]} Qxe3 {[%emt 0:00:06]} 24. Nxa7+ {[%emt 0:00:09]} Kb8 {[%emt 0:00:11]} 25. Rxe3 {[%emt 0:00:15][%cal Oe3e7] aiming for Re7! Chess con chili.} Kxa7 {[%emt 0:00:10]} 26. Reb3 {[%emt 0:14:18]} Nxa4 {[%emt 0:00:18]} (26... Rd1 {might work better.}) 27. Ra1 {[%emt 0:00:34]} b5 {[%emt 0:00:05]} (27... Rd7 28. Rxa4+ Kb8) 28. Rxb5 {[%emt 0:01:32][%cal Ra1a4]} Bd1 {[%emt 0:00:04]} 29. Bd5 $2 {[%emt 0:00:27]} (29. Rab1 {[%cal Rb5a5]} Ka6 30. Bb7+ Ka7 {[#]} 31. Bf3 $1 {[%mdl 512]}) 29... Bc2 $2 {[%emt 0:00:47]} (29... Rb8) 30. Rb2 {[%emt 0:00:59]} Bd1 {[%emt 0:00:58]} 31. Rb4 {[%emt 0:03:07]} Bc2 {[%emt 0:02:28]} (31... Rb8 {keeps fighting.}) 32. Ra2 {[%emt 0:00:22]} (32. Rb7+ $142 Ka6 33. Rb2) 32... Bd1 $2 {[%emt 0:03:58]} (32... Rb8) 33. Rb1 {[%emt 0:00:51]} Rg6 {[%emt 0:01:24]} 34. Rxd1 {[%emt 0:00:41]} Ra6 {[%emt 0:00:01]} 35. Rda1 {[%emt 0:03:20]} Nc5 {[%emt 0:00:02]} 36. Bxf7 {[%emt 0:00:31]} Rxa2 {[%emt 0:01:56]} 37. Rxa2+ {[%emt 0:00:05][%mdl 4096] Endgame KRB-KRN} Kb6 {[%emt 0:00:02]} 38. Rb2+ {[%emt 0:00:49]} Kc6 {[%emt 0:00:14]} 39. Bd5+ {[%emt 0:00:11]} Kd6 {[%emt 0:00:01]} 40. Kg2 {[%emt 0:00:47]} f4 {[%emt 0:00:18]} 41. gxf4 {[%emt 0:02:57]} Rf8 {[%emt 0:00:11]} 42. Rb6+ {[%emt 0:00:15]} Ke7 {[%emt 0:00:34]} 43. Rh6 {[%emt 0:00:21]} Nd3 {[%emt 0:00:12]} 44. Rxh7+ {[%emt 0:00:07]} Kf6 {[%emt 0:00:14]} (44... Kd6 $142 45. Rf7 Rg8+ 46. Kf3 Rh8) 45. Kf3 {[%emt 0:01:22]} Nxf4 {[%emt 0:00:03]} 46. Kxf4 {[%emt 0:12:02] Weighted Error Value: White=0.43/Black=0.91} 1-0

[Event "67th Mexican-ch Open 2022"]
[Site "Chihuahua"]
[Date "2022.04.14"]
[Round "2.4"]
[White "Hernandez Guerrero, Eduardo"]
[Black "Cordova, Emilio"]
[Result "0-1"]
[ECO "B61"]
[WhiteElo "2232"]
[BlackElo "2534"]
[Annotator "TA"]
[PlyCount "70"]
[EventDate "2022.04.12"]
[EventType "swiss"]
[EventCountry "MEX"]
[SourceTitle "playchess.com"]
[Source "ChessBase"]
[SourceQuality "1"]
[TimeControl "5400+30"]

{[%evp 14,70,58,44,61,13,22,1,0,0,0,0,44,11,24,27,72,17,43,0,27,27,33,24,25,32,37,19,75,0,10,-5,-13,-23,0,-107,-111,-127,-130,-135,-128,-115,-131,-120,-115,-154,-165,-228,-210,-222,-212,-283,-283,-260,-213,-391,-368,-529,-534]} 1. e4 {[%emt 0:00:05]} c5 {[%emt 0:00:22]} 2. Nf3 {[%emt 0:00:16]} Nc6 {[%emt 0:00:38]} 3. Nc3 {[%emt 0:00:41]} d6 {[%emt 0:00:36]} 4. d4 {[%emt 0:00:12]} cxd4 {[%emt 0:00:07]} 5. Nxd4 {[%emt 0:00:06]} Nf6 {[%emt 0:00:13]} 6. Bg5 {[%emt 0:01:17]} Bd7 {[%emt 0:00:22]} 7. Qd2 {[%emt 0:04:00]} Rc8 {[%emt 0:00:26]} 8. Nb3 {[%emt 0:17:41]} a6 {[%emt 0:01:03] B61: Sicilian: Richter-Rauzer: 6...Bd7 7 Qd2.} 9. Be2 {[%emt 0:00:26]} (9. O-O-O $14) 9... e6 {[%emt 0:00:58]} 10. O-O {[%emt 0:05:43]} h6 {[%emt 0:08:52] The position is equal.} 11. Bf4 {[%emt 0:06:53]} Ne5 {[%emt 0:01:13]} 12. a4 {[%emt 0:06:20] [#]} g5 $146 {[%emt 0:05:25]} ({Predecessor:} 12... Bc6 13. Qe3 Be7 14. Bg3 O-O 15. a5 Ned7 16. Rfd1 e5 17. Nd2 Nc5 18. Nc4 Qc7 {½-½ (35) Quesada Perez,Y (2515)-Delgado Ramirez,N (2562) Santa Clara 2007}) 13. Bg3 {[%emt 0:02:23]} Rg8 {[%emt 0:03:07]} 14. Qd4 {[%emt 0:04:52]} Qc7 {[%emt 0:09:12]} 15. Rad1 {[%emt 0:03:05]} (15. f4 $1 $16 {[%cal Rf4e5]} gxf4 16. Rxf4) 15... Be7 {[%emt 0:02:34]} 16. Kh1 {[%emt 0:02:45]} h5 {[%emt 0:11:33]} 17. f4 {[%emt 0:01:04]} gxf4 {[%emt 0:04:30]} 18. Rxf4 {[%emt 0:00:50]} Rxg3 {[%emt 0:01:19]} 19. hxg3 {[%emt 0:01:28]} Nfg4 {[%emt 0:00:07]} 20. Rdf1 {[%emt 0:01:38][%cal Of4f7]} Bc6 {[%emt 0:00:37]} ({But not} 20... Bg5 21. Rxf7 $3 {[%mdl 512]} Nxf7 22. Qg7 $16) (20... f6 $11 {remains equal.}) 21. a5 {[%emt 0:06:23]} ({White should try} 21. Nd2 $16) 21... Bg5 $11 {[%emt 0:00:48]} 22. Nd2 {[%emt 0:09:46]} Rd8 {[%emt 0:08:49]} 23. b4 {[%emt 0:09:44]} Qe7 {[%emt 0:04:13]} (23... d5 $5 {[%cal Rd5e4]} 24. Bxg4 hxg4 25. exd5 Bxd5 26. Nxd5 Rxd5 $11) 24. Nc4 {[%emt 0:01:31]} (24. Kg1 $11) 24... Bxf4 $17 {[%emt 0:01:04] The board is on fire.} 25. Rxf4 {[%emt 0:00:10] [#]} Nxc4 $1 {[%emt 0:01:37]} 26. Qxc4 {[%emt 0:00:16]} Ne5 {[%emt 0:00:21]} 27. Qd4 {[%emt 0:00:51]} Qg5 {[%emt 0:01:54]} 28. Qf2 {[%emt 0:01:31]} Ke7 {[%emt 0:01:48]} 29. b5 {[%emt 0:03:51]} axb5 {[%emt 0:00:37]} 30. Bxb5 {[%emt 0:00:06]} (30. Nxb5 $142 Bxb5 31. Bxb5) 30... Rc8 {[%emt 0:02:51]} 31. Bd3 {[%emt 0:01:37]} Ra8 {[%emt 0:03:29][%cal Bc8a8,Ba8b8,Bb8b1][%mdl 32]} 32. a6 {[%emt 0:01:46]} bxa6 {[%emt 0:00:07]} 33. Ne2 {[%emt 0:00:05]} Rb8 {[%emt 0:02:35] Strongly threatening ...a5.} 34. Nd4 $2 {[%emt 0:01:05]} (34. Bxa6 Rb1+ 35. Ng1) 34... Rb1+ $19 {[%emt 0:00:35]} 35. Kh2 {[%emt 0:00:09]} (35. Bf1 {was forced.} Bb5 36. Nxb5 axb5 37. Kg1) 35... Be8 {[%emt 0:04:31] Weighted Error Value: White=0.37/Black=0.14 (very precise)} 0-1

[Event "67th Mexican-ch Open 2022"]
[Site "Chihuahua"]
[Date "2022.04.14"]
[Round "2.5"]
[White "Gonzalez Zamora, Juan Carlos"]
[Black "Avila Rodriguez, Joshua Ad"]
[Result "1/2-1/2"]
[ECO "E46"]
[WhiteElo "2544"]
[BlackElo "2182"]
[Annotator "TA"]
[PlyCount "58"]
[EventDate "2022.04.12"]
[EventType "swiss"]
[EventCountry "MEX"]
[SourceTitle "playchess.com"]
[Source "ChessBase"]
[SourceQuality "1"]
[TimeControl "5400+30"]

{[%evp 9,58,-2,3,-11,-12,-14,-12,-2,-3,-12,-16,-13,-15,-17,-5,-11,9,-16,-7,-26,-8,-25,53,0,0,0,0,0,0,0,0,-51,-49,-47,-52,-49,-3,-8,-8,0,0,0,0,0,0,0,0,0,0,0,0]} 1. d4 {[%emt 0:02:23]} Nf6 {[%emt 0:00:28]} 2. c4 {[%emt 0:00:29]} e6 {[%emt 0:00:13]} 3. Nc3 {[%emt 0:00:24]} Bb4 {[%emt 0:00:26]} 4. e3 {[%emt 0:00:17]} O-O {[%emt 0:00:33]} 5. Bd2 {[%emt 0:02:55]} d5 {[%emt 0:00:43]} 6. cxd5 {[%emt 0:00:28] E46: Nimzo-Indian: Rubinstein: 4 e3 0-0 5 Ne2 without early Bd3.} exd5 {[%emt 0:00:11]} 7. Bd3 {[%emt 0:00:26]} b6 {[%emt 0:06:59]} 8. a3 {[%emt 0:06:46] [#]} Bd6 $146 {[%emt 0:12:33]} ({Predecessor:} 8... Be7 9. Nge2 c5 10. b3 Bb7 11. O-O Nc6 12. Qc2 Rc8 13. Bf5 Ra8 14. Rfe1 g6 {0-1 (32) Ribes Peris,A (2052)-Nieves Cabanes,J (1939) Valencia 2014}) 9. b4 {[%emt 0:02:50]} Re8 {[%emt 0:18:36]} 10. Nf3 {[%emt 0:10:58]} a6 {[%emt 0:08:47]} 11. Qc2 {[%emt 0:00:51]} Bb7 {[%emt 0:02:44]} 12. O-O {[%emt 0:11:14]} Nbd7 {[%emt 0:00:38]} 13. Rab1 {[%emt 0:06:20]} Ne4 {[%emt 0:05:25]} 14. Bc1 {[%emt 0:03:24]} Re6 {[%emt 0:03:18]} 15. Ne2 {[%emt 0:03:55]} g5 {[%emt 0:04:11]} (15... Qe7 $11) 16. Ng3 {[%emt 0:10:01]} (16. Bb2 $14) 16... g4 $11 {[%emt 0:24:01]} 17. Ne5 {[%emt 0:10:35]} Nxe5 {[%emt 0:00:24]} 18. dxe5 {[%emt 0:00:46]} Bxe5 {[%emt 0:00:08]} 19. Bxe4 {[%emt 0:00:22]} dxe4 {[%emt 0:00:08]} 20. Bb2 {[%emt 0:00:07]} (20. Rd1 $1 $11 Qg5 21. Bb2) 20... Qd3 $15 {[%emt 0:01:43]} 21. Qd1 {[%emt 0:09:55]} Qxd1 {[%emt 0:03:53]} 22. Rfxd1 {[%emt 0:00:10]} Bxg3 {[%emt 0:01:04]} (22... Rc8 $15 {was preferrable.}) 23. fxg3 $11 {[%emt 0:05:06] The position is equal.} Rc8 {[%emt 0:00:54]} 24. Rf1 {[%emt 0:01:27]} Bd5 {[%emt 0:03:48]} 25. Rf4 {[%emt 0:10:51]} Rg6 {[%emt 0:00:15]} 26. Rd1 {[%emt 0:00:00]} c6 {[%emt 0:00:17]} 27. Bd4 {[%emt 0:00:00]} b5 {[%emt 0:00:52]} 28. Kf2 {[%emt 0:00:00]} Ra8 {[%emt 0:00:13]} 29. Bc3 {[%emt 0:00:00]} Kf8 {[%emt 0:00:16] Weighted Error Value: White=0.09 (flawless) /Black=0.12 (very precise)} 1/2-1/2

[Event "67th Mexican-ch Open 2022"]
[Site "Chihuahua"]
[Date "2022.04.14"]
[Round "2.6"]
[White "Obregon Rivero, Juan Carlos"]
[Black "Sierra Arballo, Jesus"]
[Result "*"]
[WhiteElo "2536"]
[BlackElo "1916"]
[Annotator "TA"]
[PlyCount "28"]
[EventDate "2022.04.12"]
[EventType "swiss"]
[EventCountry "MEX"]
[SourceTitle "playchess.com"]
[Source "ChessBase"]
[SourceQuality "1"]
[TimeControl "5400+30"]

{[%evp 9,10,6,15]} 1. e4 {[%emt 0:00:05]} c5 {[%emt 0:03:03]} 2. Nf3 {[%emt 1:31:25]} d6 {[%emt 0:00:00]} 3. Bb5+ {[%emt 0:00:00]} Nd7 {[%emt 0:00:00]} 4. d4 {[%emt 0:00:00]} cxd4 {[%emt 0:00:00]} 5. Qxd4 {[%emt 0:00:00]} a6 {[%emt 0:00:00] [#]} {Predecessor:} 6. Bxd7+ $146 {B51: Sicilian: Moscow Variation (3 Bb5+) without 3...Bd7.} Bxd7 7. c4 Nf6 8. Bg5 e6 9. Nc3 h6 10. Bh4 Be7 11. e5 dxe5 12. Nxe5 Qc7 13. Nxd7 Qxd7 14. Qxd7+ Kxd7 {½-½ (44) Rapport,R (2763)-Wojtaszek,R (2686) Berlin 2022} *